bitfinex/quotes_SOLUSD_20250418
["timestamp","ask_amount","ask_price","bid_price","bid_amount"]
[1745013085880,7.45724036,134.1,134.07,15.00716873]
[1745013087884,0.28432314,134.1,134.07,15.00716873]
[1745013090079,26.10647728,134.11,134.07,102.63006704]
[1745013092481,7.45682842,134.11,134.07,102.63006704]
[1745013095294,7.45682842,134.11,134.08,15.00716873]
[1745013095791,7.45682842,134.11,134.08,95.91716873]
[1745013100287,18.933972,134.11,134.08,95.91716873]
[1745013105604,18.933972,134.11,134.09,15.00716873]
[1745013105793,18.933972,134.11,134.08,95.91716873]
[1745013105979,18.933972,134.11,134.09,15.00716873]
[1745013106184,18.933972,134.11,134.08,95.91716873]
[1745013107707,18.963972,134.12,134.09,15.00716873]
[1745013110406,18.963972,134.12,134.1,15.00716873]
[1745013110603,0.03,134.12,134.1,15.00716873]
[1745013111101,0.03,134.12,134.11,15.00716873]
[1745013112194,0.03,134.12,134.11,102.62807768]
[1745013123094,0.03,134.12,134.11,188.6567526]
[1745013125230,0.03,134.14,134.13,15.00716873]
[1745013125428,0.03,134.14,134.13,95.88716873]
[1745013126100,0.03,134.14,134.13,102.59707702]
[1745013140437,0.03,134.14,134.13,128.59707702]
[1745013154245,0.03,134.15,134.13,128.59707702]
[1745013154450,0.03,134.15,134.14,21.71657681]
[1745013160361,0.03,134.15,134.14,102.59657681]
[1745013175457,0.03,134.18,134.15,100.85]
[1745013175769,0.03,134.18,134.17,15.00716873]
[1745013176268,0.03,134.18,134.17,21.7150766]
[1745013180143,0.03,134.18,134.17,15.00716873]
[1745013180848,0.03,134.18,134.17,95.85716873]
[1745013184565,0.03,134.18,134.17,80.85]
[1745013192575,26.41664751,134.18,134.15,15.00716873]
[1745013193354,0.28432314,134.16,134.13,106.85]
[1745013193556,0.28432314,134.16,134.13,80.85]
[1745013194678,7.45434215,134.15,134.13,80.85]
[1745013204365,7.45434215,134.15,134.1,26.063]
[1745013204366,33.94114073,134.14,134.1,0.063]
[1745013204565,0.14216157,134.13,134.1,0.063]
[1745013204783,16.7385303,134.13,134.1,0.063]
[1745013205293,18.933972,134.11,134.1,0.063]
[1745013206487,26.3905375,134.11,134.1,0.063]
[1745013233624,26.53269907,134.11,134.1,0.063]
[1745013233832,41.5398678,134.11,134.1,0.063]
[1745013248049,26.53269907,134.11,134.1,0.063]
[1745013257162,26.3905375,134.11,134.1,0.063]
[1745013282586,41.5398678,134.11,134.1,0.063]
[1745013290096,41.0398678,134.11,134.1,0.063]
[1745013291898,26.03269907,134.11,134.1,0.063]
[1745013292200,26.31702221,134.11,134.1,0.063]
[1745013298899,40.93702221,134.11,134.1,0.063]
[1745013305806,0.14216157,134.1,134.08,0.063]
[1745013307113,7.74200081,134.09,134.08,0.063]
[1745013311611,7.45767767,134.09,134.08,0.063]
[1745013311809,26.10732653,134.09,134.08,15.07016873]
[1745013312610,26.10732653,134.09,134.08,0.063]
[1745013341534,26.39109355,134.1,134.08,0.063]
[1745013344433,18.933972,134.08,134.07,1e-08]
[1745013344619,33.94114073,134.08,134.07,1e-08]
[1745013344937,18.933972,134.07,134.06,1e-08]
[1745013345436,33.94114073,134.07,134.06,1e-08]
[1745013345639,34.0833023,134.07,134.06,1e-08]
[1745013346537,41.54209248,134.07,134.06,1e-08]
[1745013347239,0.42648471,134.06,134.04,1e-08]
[1745013347450,48.6833023,134.05,134.04,1e-08]
[1745013348423,56.14320532,134.05,134.04,1e-08]
[1745013359850,18.933972,134.04,134.03,1e-08]
[1745013360038,33.94114073,134.04,134.03,1e-08]
[1745013365360,41.40160029,134.04,134.03,1e-08]
[1745013366258,26.39443156,134.04,134.03,1e-08]
[1745013366450,41.40160029,134.04,134.03,1e-08]
[1745013367955,26.11010842,134.04,134.03,1e-08]
[1745013368453,26.25226999,134.04,134.03,1e-08]
[1745013368654,26.39443156,134.04,134.03,1e-08]
[1745013369058,26.39443156,134.04,134.03,15.00716874]
[1745013372062,26.39443156,134.04,134.03,1e-08]
[1745013372867,26.39443156,134.04,134.03,15.00716874]
[1745013373766,26.39443156,134.04,134.03,1e-08]
[1745013400884,7.46045956,134.04,134.03,1e-08]
[1745013403682,7.45990302,134.05,134.03,1e-08]
[1745013421395,18.933972,134.04,134.03,1e-08]
[1745013421702,19.07613357,134.04,134.03,1e-08]
[1745013421894,0.14216157,134.03,134.02,1e-08]
[1745013423699,7.60317776,134.03,134.02,1e-08]
[1745013440619,18.64964886,134.02,134.01,1e-08]
[1745013440816,0.14216157,134.0,133.97,1e-08]
[1745013441008,33.94114073,133.98,133.97,1e-08]
[1745013441319,0.14216157,133.97,133.95,1e-08]
[1745013441822,18.933972,133.96,133.95,1e-08]
[1745013443120,26.39888689,133.96,133.95,1e-08]
[1745013445019,41.40605562,133.96,133.95,1e-08]
[1745013448625,26.39888689,133.96,133.95,1e-08]
[1745013454527,41.54821719,133.96,133.95,1e-08]
[1745013462541,56.14821719,133.96,133.95,1e-08]
[1745013463541,41.54821719,133.96,133.95,1e-08]
[1745013463716,26.11456375,133.96,133.95,1e-08]
[1745013464338,26.39888689,133.96,133.95,1e-08]
[1745013464845,26.11456375,133.96,133.95,1e-08]
[1745013465539,26.39888689,133.96,133.95,1e-08]
[1745013502184,7.46491489,133.96,133.95,1e-08]
[1745013505077,26.39832969,133.97,133.95,1e-08]
[1745013511890,7.46435769,133.97,133.96,15.00716873]
[1745013514091,26.12388428,133.98,133.96,15.00716873]
[1745013514297,26.12388428,133.98,133.97,15.00716873]
[1745013520221,18.66008372,133.98,133.97,15.00716873]
[1745013521430,7.46324352,133.99,133.97,15.00716873]
[1745013521727,7.46324352,133.99,133.98,15.00716873]
[1745013522405,7.46157289,134.02,133.98,75.03584365]
[1745013522607,7.46157289,134.02,134.01,15.00716873]
[1745013524121,26.17787722,134.03,134.01,15.00716873]
[1745013524304,26.17787722,134.03,134.02,15.00716873]
[1745013524826,7.52401619,134.03,134.02,15.00716873]
[1745013525218,0.063,134.03,134.02,95.85716873]
[1745013525410,0.063,134.03,134.02,121.85716873]
[1745013525606,0.063,134.03,134.02,97.39406873]
[1745013526323,0.063,134.03,134.02,117.39406873]
[1745013526514,0.063,134.04,134.02,117.39406873]
[1745013526721,0.063,134.04,134.03,15.00716873]
[1745013526920,7.45839075,134.08,134.03,75.03584365]
[1745013527115,7.45839075,134.08,134.07,41.00716873]
[1745013527314,7.48784457,134.09,134.07,121.85716873]
[1745013527632,7.48784457,134.09,134.08,15.00716873]
[1745013528228,0.03,134.09,134.08,15.00716873]
[1745013529246,0.03,134.09,134.07,106.85]
[1745013529734,0.03,134.09,134.08,15.00716873]
[1745013530033,0.03,134.09,134.07,121.85716873]
[1745013530521,7.48767767,134.09,134.07,121.85716873]
[1745013532136,7.48767767,134.09,134.07,80.85]
[1745013532844,7.48767767,134.09,134.07,95.85716873]
[1745013536552,7.48767767,134.09,134.08,15.00716873]
[1745013542754,0.03,134.09,134.08,15.00716873]
[1745013544556,0.03,134.09,134.08,95.85716873]
[1745013555453,0.03,134.09,134.08,80.85]
[1745013555654,0.03,134.09,134.07,15.00716873]
[1745013556063,0.31432314,134.09,134.07,15.00716873]
[1745013556254,0.31432314,134.09,134.05,106.85]
[1745013556663,0.31432314,134.09,134.07,15.00716873]
[1745013557482,7.45823389,134.08,134.07,15.00716873]
[1745013560680,7.74255703,134.08,134.05,80.85]
[1745013560883,26.10381861,134.08,134.05,80.85]
[1745013561183,0.28432314,134.07,134.06,15.00716873]
[1745013561375,0.28432314,134.07,134.05,95.85716873]
[1745013561575,19.07613357,134.07,134.05,80.85]
[1745013561883,19.07613357,134.07,134.03,15.00716873]
[1745013562268,19.07613357,134.07,134.02,15.00716873]
[1745013562269,34.0833023,134.07,134.02,15.00716873]
[1745013563092,0.28432314,134.04,134.03,15.00716873]
[1745013564084,7.45934656,134.06,134.03,15.00716873]
[1745013564376,7.45934656,134.06,134.05,15.00716873]
[1745013564583,7.45823389,134.08,134.05,15.00716873]
[1745013564765,7.45823389,134.08,134.07,15.00716873]
[1745013565174,7.48767767,134.09,134.07,15.00716873]
[1745013565379,7.77200081,134.09,134.08,15.00716873]
[1745013565687,7.77200081,134.09,134.07,15.00716873]
[1745013565886,7.77200081,134.09,134.08,15.00716873]
[1745013566382,7.77200081,134.09,134.07,15.00716873]
[1745013567284,26.416195,134.09,134.05,80.85]
[1745013567464,26.416195,134.09,134.07,15.00716873]
[1745013573588,7.48767767,134.09,134.08,15.00716873]
[1745013574609,0.03,134.09,134.08,15.00716873]
[1745013579818,0.03,134.09,134.05,140.87867492]
[1745013580002,0.03,134.09,134.08,15.00716873]
[1745013581709,0.03,134.09,134.05,80.85]
[1745013581900,0.28432314,134.07,134.04,15.00716873]
[1745013582299,0.28432314,134.07,134.05,15.00716873]
[1745013582918,7.45934656,134.06,134.05,15.00716873]
[1745013587024,7.45934656,134.06,134.01,95.43]
[1745013587195,7.45934656,134.06,134.05,15.00716873]
[1745013587390,26.10771296,134.06,134.04,15.00716873]
[1745013589723,26.3920361,134.06,134.05,15.00716873]
[1745013591827,26.3920361,134.06,134.01,80.85]
[1745013592122,26.3920361,134.06,134.05,15.00716873]
[1745013593502,26.3920361,134.06,134.01,80.85]
[1745013593703,26.3920361,134.06,134.04,15.00716873]
[1745013594010,7.45823389,134.08,134.05,15.00716873]
[1745013594215,7.74255703,134.08,134.07,15.00716873]
[1745013595112,7.48789527,134.09,134.07,15.00716873]
[1745013595425,0.03,134.09,134.08,15.00716873]
[1745013600629,0.03,134.09,134.08,95.85716873]
[1745013600829,0.03,134.1,134.08,102.56957923]
[1745013601047,0.03,134.1,134.09,15.00716873]
[1745013601751,0.03,134.11,134.09,117.38116873]
[1745013601937,0.03,134.11,134.1,15.00716873]
[1745013607755,0.03,134.11,134.1,95.85716873]
[1745013608430,0.03,134.11,134.1,102.56857812]
[1745013608841,0.03,134.11,134.1,95.85716873]
[1745013609041,0.03,134.11,134.1,102.56857812]
[1745013609243,0.03,134.11,134.1,95.85716873]
[1745013609645,0.03,134.12,134.1,102.56857812]
[1745013609846,0.03,134.15,134.11,95.03584365]
[1745013610054,0.03,134.15,134.14,15.00716873]
[1745013614961,0.03,134.15,134.14,95.85716873]
[1745013617465,0.03,134.15,134.14,80.85]
[1745013617642,0.03,134.15,134.14,95.85716873]
[1745013618369,0.03,134.15,134.14,80.85]
[1745013618660,0.17216157,134.15,134.11,15.00716873]
[1745013618843,1.79346157,134.15,134.11,95.85716873]
[1745013619038,1.79346157,134.15,134.11,80.85]
[1745013619239,0.14216157,134.13,134.09,15.00716873]
[1745013619451,0.28432314,134.11,134.08,15.00716873]
[1745013620266,18.63960842,134.13,134.1,15.00716873]
[1745013620569,1.6513,134.15,134.12,15.00716873]
[1745013620868,7.48444606,134.15,134.14,15.00716873]
[1745013622056,0.03,134.15,134.14,15.00716873]
[1745013626765,0.03,134.15,134.14,95.85716873]
[1745013629463,0.03,134.15,134.14,80.85]
[1745013629665,0.03,134.15,134.14,95.85716873]
[1745013632687,0.03,134.15,134.14,80.85]
[1745013634393,26.12019753,134.15,134.12,15.00716873]
[1745013635088,0.28432314,134.14,134.12,15.00716873]
[1745013635270,0.28432314,134.14,134.11,15.00716873]
[1745013636389,26.09408782,134.13,134.1,95.85716873]
[1745013637594,26.09408782,134.13,134.1,80.85]
[1745013637779,26.09408782,134.13,134.1,95.85716873]
[1745013642893,26.09408782,134.13,134.11,15.00716873]
[1745013643389,26.09408782,134.13,134.1,80.85]
[1745013643587,26.09408782,134.13,134.11,15.00716873]
[1745013643890,26.37841096,134.13,134.12,15.00716873]
[1745013645906,26.37841096,134.13,134.11,15.00716873]
[1745013646697,26.37841096,134.13,134.1,80.85]
[1745013646999,26.37841096,134.13,134.1,95.85716873]
[1745013647502,26.37841096,134.13,134.1,80.85]
[1745013647879,26.37841096,134.13,134.1,95.85716873]
[1745013648094,26.37841096,134.13,134.11,15.00716873]
[1745013650988,26.37841096,134.13,134.1,80.85]
[1745013651301,26.37841096,134.13,134.11,15.00716873]
[1745013651702,26.37841096,134.13,134.1,80.85]
[1745013651888,26.37841096,134.13,134.11,15.00716873]
[1745013655212,26.37841096,134.13,134.11,10.94423723]
[1745013655606,26.37841096,134.13,134.11,10.94423505]
[1745013657811,26.37841096,134.13,134.1,80.85]
[1745013658112,26.37841096,134.13,134.1,91.79423505]
[1745013658713,26.37841096,134.13,134.11,10.94423505]
[1745013661516,26.37841096,134.13,134.1,80.85]
[1745013661692,26.37841096,134.13,134.1,91.79423505]
[1745013663311,26.37841096,134.13,134.11,10.94423505]
[1745013667000,26.37841096,134.13,134.1,80.85]
[1745013667213,26.37841096,134.13,134.11,10.94423505]
[1745013671622,26.37841096,134.13,134.1,91.79423505]
[1745013674126,0.28432314,134.12,134.06,109.0508]
[1745013674449,0.28432314,134.1,134.06,91.85723505]
[1745013674916,0.28432314,134.08,134.06,80.913]
[1745013675103,0.28432314,134.08,134.06,0.063]
[1745013677523,7.74311332,134.07,134.06,0.063]
[1745013677929,18.933972,134.06,134.05,0.063]
[1745013678109,0.14216157,134.05,134.04,0.063]
[1745013678308,0.28432314,134.03,134.0,11.00723505]
[1745013678501,0.42648471,134.03,134.0,11.00723505]
[1745013678709,0.42648471,134.03,134.0,0.063]
[1745013679726,0.28432314,134.01,134.0,0.063]
[1745013681318,19.07613357,134.01,134.0,0.063]
[1745013681816,26.53826326,134.01,134.0,0.063]
[1745013682007,37.48249831,134.01,134.0,1e-08]
[1745013682402,39.11069831,134.01,134.0,1e-08]
[1745013682607,57.76602253,134.01,133.98,1e-08]
[1745013682827,30.02036862,133.99,133.98,1e-08]
[1745013683329,19.07613357,133.99,133.98,1e-08]
[1745013684230,26.53937709,133.99,133.98,1e-08]
[1745013684625,7.74756666,133.99,133.98,10.94423506]
[1745013684932,7.46157289,134.02,133.98,10.94423506]
[1745013685230,0.28432314,134.01,133.99,10.94423505]
[1745013686102,0.28432314,134.01,133.98,10.94423506]
[1745013686314,44.76515399,134.02,133.98,10.94423506]
[1745013686530,0.42648471,134.01,133.98,10.94423506]
[1745013686925,0.42648471,134.01,133.98,1e-08]
[1745013687319,0.42648471,134.01,133.98,10.94423506]
[1745013688434,7.46268656,134.0,133.98,10.94423506]
[1745013689841,7.46268656,134.0,133.99,10.94423505]
[1745013690530,7.74645283,134.01,133.99,10.94423505]
[1745013694538,7.74645283,134.01,133.98,10.94423506]
[1745013694934,7.74645283,134.01,133.99,10.94423505]
[1745013699841,7.46045956,134.04,134.0,10.94423505]
[1745013700045,7.46045956,134.04,134.01,10.94423505]
[1745013700421,0.14216157,134.03,134.0,10.94423505]
[1745013700620,0.28432314,134.03,134.01,10.94423505]
[1745013701847,7.74534228,134.03,134.01,10.94423505]
[1745013702222,18.71264886,134.07,134.02,10.94423505]
[1745013702427,19.07613357,134.06,134.03,10.94423505]
[1745013703442,26.53548013,134.06,134.03,10.94423505]
[1745013703646,7.7436697,134.06,134.04,10.94423505]
[1745013703837,7.52204236,134.07,134.05,10.94423505]
[1745013704035,0.063,134.07,134.05,10.94423505]
[1745013705350,0.063,134.07,134.06,10.94423505]
[1745013711559,0.063,134.07,134.05,117.79423505]
[1745013714452,7.52179018,134.07,134.05,117.79423505]
[1745013716259,7.52179018,134.07,134.06,10.94423505]
[1745013721150,0.28432314,134.06,134.01,80.85]
[1745013721544,0.28432314,134.06,134.02,10.94423505]
[1745013721744,0.28432314,134.06,134.02,36.94423505]
[1745013723579,7.45990302,134.05,134.02,26.0]
[1745013723861,7.45990302,134.05,134.02,36.94423505]
[1745013724966,7.45990302,134.05,134.03,10.94423505]
[1745013726348,7.45990302,134.05,134.04,10.94423505]
[1745013726544,7.45962651,134.06,134.04,10.94423505]
[1745013727449,26.16876564,134.07,134.04,10.94423505]
[1745013731869,0.063,134.07,134.06,10.94423505]
[1745013741679,0.063,134.07,134.05,80.85]
[1745013741867,0.34732314,134.07,134.05,80.85]
[1745013742178,7.7436697,134.06,134.05,80.85]
[1745013744080,7.7436697,134.06,134.04,10.94423505]
[1745013744379,7.7436697,134.06,134.05,10.94423505]
[1745013746278,7.52190459,134.07,134.05,10.94423505]
[1745013746468,0.063,134.07,134.06,10.94423505]
[1745013751180,0.063,134.07,134.04,26.0]
[1745013751588,0.063,134.07,134.05,26.0]
[1745013752063,0.063,134.07,134.03,10.94423505]
[1745013752986,0.063,134.07,134.02,106.85]
[1745013753185,0.42648471,134.05,134.02,117.79423505]
[1745013754491,7.46045956,134.04,134.02,80.85]
[1745013754688,0.42648471,134.03,134.02,80.85]
[1745013754878,19.07613357,134.03,134.01,10.94423505]
[1745013755073,19.07613357,134.03,134.0,10.94423505]
[1745013755379,19.07613357,134.03,133.99,10.94423505]
[1745013755690,19.07613357,134.03,134.0,10.94423505]
[1745013756890,7.46157289,134.02,134.0,10.94423505]
[1745013757575,7.46157289,134.02,134.01,10.94423505]
[1745013757889,7.88773161,134.03,134.01,10.94423505]
[1745013758090,7.88773161,134.03,134.02,10.94423505]
[1745013758287,7.4612469,134.03,134.02,10.94423505]
[1745013758591,7.4612469,134.03,133.98,86.82097153]
[1745013758768,7.4612469,134.03,134.02,10.94423505]
[1745013759170,7.46045956,134.04,134.02,10.94423505]
[1745013760495,7.46045956,134.04,133.98,130.59791173]
[1745013760903,7.46045956,134.04,134.02,10.94423505]
[1745013763997,7.46045956,134.04,134.03,10.94423505]
[1745013764373,7.88638773,134.05,134.03,10.94423505]
[1745013766101,7.88638773,134.05,134.02,10.94423505]
[1745013767683,7.88638773,134.05,134.03,10.94423505]
[1745013770498,7.45990302,134.05,134.04,10.94423505]
[1745013772102,7.88583127,134.06,134.04,10.94423505]
[1745013772291,7.88583127,134.06,134.05,10.94423505]
[1745013773307,7.52179018,134.07,134.05,10.94423505]
[1745013773503,7.94827489,134.07,134.06,10.94423505]
[1745013773691,7.94827489,134.07,134.05,10.94423505]
[1745013776380,7.94827489,134.07,134.06,10.94423505]
[1745013776805,7.52179018,134.07,134.06,10.94423505]
[1745013778403,0.063,134.07,134.06,10.94423505]
[1745013789520,0.063,134.07,134.03,106.85]
[1745013789717,0.063,134.07,134.05,10.94423505]
[1745013789915,0.42648471,134.05,134.03,26.0]
[1745013790218,0.42648471,134.05,134.03,10.94423505]
[1745013791291,7.46045956,134.04,134.03,10.94423505]
[1745013791495,7.46045956,134.04,134.01,80.85]
[1745013791708,0.42648471,134.03,134.01,91.79423505]
[1745013791896,30.02036862,134.03,133.98,80.85000001]
[1745013792095,19.07613357,134.03,134.01,10.94423505]
[1745013792391,7.46045956,134.04,134.02,10.94423505]
[1745013792598,19.07613357,134.03,133.98,80.85000001]
[1745013792831,29.59388391,134.0,133.98,1e-08]
[1745013793011,11.37071976,133.99,133.98,1e-08]
[1745013793216,19.07613357,133.98,133.97,1e-08]
[1745013793428,37.48416918,133.98,133.97,1e-08]
[1745013793595,7.46380056,133.98,133.97,10.94423506]
[1745013793799,7.89028527,133.98,133.97,1e-08]
[1745013794296,11.37071976,133.97,133.96,1e-08]
[1745013794501,7.46380056,133.98,133.96,10.94423506]
[1745013794703,0.42648471,133.97,133.96,1e-08]
[1745013794999,11.37071976,133.97,133.96,1e-08]
[1745013795226,0.42648471,133.97,133.96,1e-08]
[1745013795407,7.8908424,133.97,133.96,1e-08]
[1745013796617,7.8908424,133.97,133.96,10.94423506]
[1745013796815,18.64964886,134.0,133.96,10.94423506]
[1745013797009,18.64964886,134.0,133.99,10.94423505]
[1745013797224,26.11233542,134.0,133.99,10.94423505]
[1745013797520,26.53882013,134.0,133.99,10.94423505]
[1745013797727,7.60484813,134.0,133.99,10.94423505]
[1745013798121,7.88917127,134.0,133.98,10.94423505]
[1745013798344,30.02036862,133.99,133.96,1e-08]
[1745013798529,19.07613357,133.99,133.96,10.94423506]
[1745013798819,7.46268656,134.0,133.98,10.94423505]
[1745013799123,7.88917127,134.0,133.99,10.94423505]
[1745013799426,7.46101619,134.03,133.99,10.94423505]
[1745013799636,0.42648471,134.03,134.02,10.94423505]
[1745013800531,0.42648471,134.03,134.01,10.94423505]
[1745013800706,0.42648471,134.03,133.99,10.94423505]
[1745013801032,0.42648471,134.03,134.0,10.94423505]
[1745013801200,0.42648471,134.03,133.96,88.76850001]
[1745013801201,0.42648471,134.03,134.02,10.94423505]
[1745013802531,7.8875009,134.03,134.02,10.94423505]
[1745013803610,7.8875009,134.03,134.01,10.94423505]
[1745013803813,0.42648471,134.01,133.98,80.85]
[1745013804007,0.42648471,134.01,133.99,10.94423505]
[1745013804505,0.42648471,134.01,134.0,10.94423505]
[1745013804706,7.8886144,134.01,134.0,10.94423505]
[1745013804903,7.46212969,134.01,134.0,10.94423505]
[1745013805936,0.42648471,133.99,133.96,80.85000001]
[1745013806109,0.42648471,133.99,133.98,10.94423505]
[1745013806810,7.46212969,134.01,133.98,10.94423505]
[1745013807018,7.46212969,134.01,133.99,10.94423505]
[1745013807234,19.07613357,134.0,133.96,80.85000001]
[1745013807445,19.07613357,134.0,133.96,1e-08]
[1745013807747,19.07613357,134.0,133.97,10.94423505]
[1745013808627,19.07613357,134.0,133.98,10.94423505]
[1745013808939,7.60484813,134.0,133.98,10.94423505]
[1745013809126,0.28432314,133.99,133.98,17.13473866]
[1745013811049,7.46380056,133.98,133.96,26.00000001]
[1745013811352,51.09087223,133.97,133.96,1e-08]
[1745013811941,33.95613357,133.97,133.96,1e-08]
[1745013812119,9.10800056,133.98,133.96,17.13473867]
[1745013812120,7.46380056,133.98,133.96,17.13473867]
[1745013812441,0.42648471,133.97,133.96,1e-08]
[1745013813242,7.8908424,133.97,133.96,1e-08]
[1745013813647,40.88,134.01,133.96,17.13473867]
[1745013813648,32.01473866,134.01,133.96,17.13473867]
[1745013813839,19.07613357,133.99,133.96,17.13473867]
[1745013814645,0.42648471,133.99,133.97,17.13473866]
[1745013814941,7.46268656,134.0,133.98,17.13473866]
[1745013816142,7.46157289,134.02,133.99,17.13473866]
[1745013816439,0.42648471,134.01,133.99,17.13473866]
[1745013817138,0.42648471,134.01,134.0,17.13473866]
[1745013817453,7.46157289,134.02,134.0,17.13473866]
[1745013818947,36.21087223,134.02,133.97,17.13473866]
[1745013819845,0.42648471,134.0,133.97,17.13473866]
[1745013820253,7.46212969,134.01,133.99,17.13473866]
[1745013820433,7.46212969,134.01,134.0,17.13473866]
[1745013821541,7.46212969,134.01,133.99,17.13473866]
[1745013821740,0.42648471,134.0,133.98,17.13473866]
[1745013821949,7.46324352,133.99,133.96,106.85000001]
[1745013822124,7.46324352,133.99,133.98,17.13473866]
[1745013822318,7.46324352,133.99,133.96,106.85000001]
[1745013822521,7.46324352,133.99,133.98,17.13473866]
[1745013825236,18.79181043,133.98,133.96,80.85000001]
[1745013825437,7.46324352,133.99,133.97,17.13473866]
[1745013825760,7.88972823,133.99,133.98,17.13473866]
[1745013827031,7.88972823,133.99,133.96,80.85000001]
[1745013827032,7.88972823,133.99,133.97,17.13473866]
[1745013828854,7.88972823,133.99,133.98,17.13473866]
[1745013829055,7.74756666,133.99,133.98,17.13473866]
[1745013829352,7.46324352,133.99,133.98,17.13473866]
[1745013830944,7.88917127,134.0,133.98,17.13473866]
[1745013831139,7.88917127,134.0,133.96,80.85000001]
[1745013831343,7.88917127,134.0,133.98,17.13473866]
[1745013831649,26.54588768,134.0,133.97,17.13473866]
[1745013832233,7.88917127,134.0,133.98,17.13473866]
[1745013832553,7.88917127,134.0,133.99,17.13473866]
[1745013833849,7.88917127,134.0,133.98,17.13473866]
[1745013835248,7.88917127,134.0,133.96,80.85000001]
[1745013835456,43.67355879,134.0,133.96,80.85000001]
[1745013835752,45.19553654,134.0,133.97,17.13473866]
[1745013838971,7.46268656,134.0,133.99,17.13473866]
[1745013840655,7.46157289,134.02,133.99,17.13473866]
[1745013840848,7.46157289,134.02,134.0,17.13473866]
[1745013841049,7.46045956,134.04,134.01,17.13473866]
[1745013841247,7.46045956,134.04,134.03,17.13473866]
[1745013843260,7.94938773,134.05,134.03,17.13473866]
[1745013843557,7.94938773,134.05,134.04,17.13473866]
[1745013844052,0.063,134.05,134.04,17.13473866]
[1745013844447,0.063,134.05,134.03,17.13473866]
[1745013844952,0.48948471,134.05,134.01,80.85]
[1745013845158,17.62422337,134.05,134.01,80.85]
[1745013845359,7.46045956,134.04,134.01,97.98473866]
[1745013845535,0.42648471,134.03,134.01,97.98473866]
[1745013845862,19.07613357,134.03,134.0,43.13473866]
[1745013846153,19.07613357,134.03,134.01,17.13473866]
[1745013847046,19.07613357,134.03,134.0,43.13473866]
[1745013847562,7.46157289,134.02,134.0,43.13473866]
[1745013849268,0.42648471,134.01,133.97,80.85]
[1745013849446,0.42648471,134.01,133.98,17.13473866]
[1745013849447,19.07613357,134.01,133.98,17.13473866]
[1745013850069,7.46268656,134.0,133.98,17.13473866]
[1745013850251,7.88917127,134.0,133.99,17.13473866]
[1745013850455,7.88917127,134.0,133.98,17.13473866]
[1745013851052,7.88917127,134.0,133.97,17.13473866]
[1745013851570,54.44094769,134.01,133.96,26.00000001]
[1745013851571,0.42648471,134.02,133.99,17.13473866]
[1745013851874,26.11066505,134.03,134.01,17.13473866]
[1745013851875,7.46101619,134.03,134.01,17.13473866]
[1745013852042,7.8875009,134.03,134.02,17.13473866]
[1745013852241,7.8875009,134.03,134.01,17.13473866]
[1745013852757,0.42648471,134.02,134.01,17.13473866]
[1745013853061,19.07613357,134.02,134.0,17.13473866]
[1745013853864,7.46045956,134.04,134.01,17.13473866]
[1745013854041,7.46045956,134.04,134.02,17.13473866]
[1745013854363,7.46045956,134.04,134.01,17.13473866]
[1745013855037,7.46045956,134.04,134.02,17.13473866]
[1745013855242,7.46045956,134.04,134.03,17.13473866]
[1745013855835,0.063,134.05,134.03,97.98473866]
[1745013856035,0.063,134.05,134.04,17.13473866]
[1745013857171,0.063,134.06,134.04,115.11947732]
[1745013857342,0.063,134.07,134.05,54.26947732]
[1745013857542,0.063,134.07,134.06,43.13473866]
[1745013857744,0.063,134.07,134.06,26.0]
[1745013857967,0.063,134.07,134.06,43.13473866]
[1745013858342,0.063,134.07,134.06,49.1022159]
[1745013859047,0.063,134.07,134.06,43.13473866]
[1745013860971,0.063,134.11,134.09,26.0]
[1745013861176,0.063,134.11,134.1,17.13473866]
[1745013862375,0.063,134.11,134.09,106.85]
[1745013862548,0.063,134.11,134.09,123.98473866]
[1745013863072,0.063,134.11,134.09,97.98473866]
[1745013863378,0.063,134.11,134.1,17.13473866]
[1745013864170,7.5195655,134.11,134.1,17.13473866]
[1745013865449,0.063,134.11,134.1,17.13473866]
[1745013866671,0.063,134.11,134.1,123.98473866]
[1745013866866,0.063,134.13,134.12,26.0]
[1745013867073,0.063,134.13,134.12,123.98473866]
[1745013867747,0.063,134.13,134.12,106.85]
[1745013867953,0.063,134.13,134.12,123.98473866]
[1745013868250,0.063,134.13,134.12,80.85]
[1745013868452,0.063,134.13,134.12,97.98473866]
[1745013869561,0.063,134.13,134.12,115.11947732]
[1745013869975,0.063,134.13,134.12,80.85]